bitfinex/quotes_ETHUSD_20260111
["timestamp","ask_amount","ask_price","bid_price","bid_amount"]
[1768096541997,0.002,3095.1,3094.8,0.9164074]
[1768096542914,0.002,3095.1,3094.8,1.04571474]
[1768096549516,0.002,3095.1,3094.8,0.9164074]
[1768096549720,0.002,3095.1,3094.9,0.25680008]
[1768096549910,0.002,3095.1,3094.9,0.69725065]
[1768096553431,0.002,3095.1,3094.9,0.25680008]
[1768096554135,0.002,3095.1,3094.8,0.9164074]
[1768096554428,0.002,3095.1,3094.8,1.17320748]
[1768096564448,0.002,3095.1,3094.8,0.25680008]
[1768096629421,0.002,3095.1,3094.9,0.90298947]
[1768096629600,0.00080008,3095.2,3095.0,1.34208099]
[1768096630002,0.00080008,3095.2,3095.1,0.12928854]
[1768096637450,0.00280008,3095.4,3095.1,0.12928854]
[1768096637625,0.00280008,3095.4,3095.2,0.90298947]
[1768096638220,0.00280008,3095.4,3095.3,0.12928352]
[1768096638421,0.00280008,3095.4,3095.3,0.55559838]
[1768096654135,0.00080008,3095.5,3095.3,0.55559838]
[1768096659154,0.00080008,3095.5,3095.3,1.46249337]
[1768096659449,0.00080008,3095.5,3095.3,1.03617851]
[1768096660545,0.00080008,3095.5,3095.3,0.12928352]
[1768096662552,0.00080008,3095.5,3095.2,3.2308087]
[1768096662925,0.00080008,3095.5,3095.2,3.36009139]
[1768096663460,0.00080008,3095.5,3095.2,0.12928269]
[1768096663662,0.00080008,3095.5,3095.3,0.42670541]
[1768096689189,0.00080008,3095.5,3095.3,0.55598266]
[1768096699381,0.00080008,3095.5,3095.3,0.12927725]
[1768096700083,0.00080008,3095.5,3095.2,3.23076497]
[1768096700260,0.00080008,3095.5,3095.2,4.17121095]
[1768096700693,0.00080008,3095.5,3095.2,3.23076497]
[1768096700994,0.00080008,3095.5,3095.3,0.94044598]
[1768096701185,0.00080008,3095.5,3095.3,1.4511536]
[1768096727192,0.00080008,3095.5,3095.3,4.68185079]
[1768096727393,0.00080008,3095.5,3095.3,1.4511536]
[1768096734523,0.00080008,3095.5,3095.3,4.68185306]
[1768096734931,0.00080008,3095.5,3095.3,3.74140708]
[1768096735099,0.00080008,3095.5,3095.4,0.12927433]
[1768096735930,0.00080008,3095.5,3095.3,3.74140708]
[1768096736103,0.00080008,3095.5,3095.3,3.87068141]
[1768096736427,0.00080008,3095.5,3095.4,0.48947466]
[1768096745335,0.00080008,3095.5,3095.4,0.6187469]
[1768096755145,0.0028,3095.7,3095.4,0.6187469]
[1768096760927,0.0028,3095.7,3095.4,3.8493305]
[1768096761546,0.0028,3095.7,3095.4,4.75305382]
[1768096761726,0.0028,3095.7,3095.5,0.47530538]
[1768096777226,0.0028,3095.7,3095.5,1.42441919]
[1768096783861,0.002,3095.8,3095.5,2.40972301]
[1768096784258,0.002,3095.8,3095.6,0.98530382]
[1768096784763,0.002,3095.8,3095.6,1.23930382]
[1768096784971,0.002,3095.8,3095.7,0.17146092]
[1768096788546,0.002,3095.8,3095.6,0.254]
[1768096796457,0.75815379,3096.1,3095.6,0.254]
[1768096801100,0.0008,3096.2,3095.6,0.254]
[1768096801806,0.002,3095.8,3095.6,0.254]
[1768096824816,0.002,3095.8,3095.3,0.00080008]
[1768096825020,0.002,3095.8,3095.4,0.9695199]
[1768096829824,0.97188995,3095.8,3095.4,0.9695199]
[1768096835126,0.002,3095.8,3095.4,0.9695199]
[1768096836632,0.9467366,3095.8,3095.4,0.9695199]
[1768096837401,0.9467366,3095.8,3095.7,0.001]
[1768096838941,0.9467366,3095.8,3095.3,0.00080008]
[1768096839239,1.2007366,3095.8,3095.3,0.00080008]
[1768096841505,0.002,3095.8,3095.3,4.63553093]
[1768096841711,0.002,3095.8,3095.4,0.98384469]
[1768096846142,0.002,3095.8,3095.3,0.6749889]
[1768096846842,0.9467366,3095.8,3095.3,0.25480008]
[1768096849136,0.9467366,3095.8,3095.6,0.001]
[1768096850750,0.002,3095.8,3095.6,0.001]
[1768096850919,0.9467366,3095.8,3095.6,0.001]
[1768096851843,0.9467366,3095.8,3095.3,0.00080008]
[1768096852510,0.9447366,3095.7,3095.3,0.00080008]
[1768096860635,0.9447366,3095.7,3095.6,0.001]
[1768096860951,0.9447366,3095.7,3095.3,0.00080008]
[1768096865567,0.002,3095.8,3095.3,0.00080008]
[1768096866561,0.97372712,3095.8,3095.3,0.00080008]
[1768096869442,0.97172712,3095.7,3095.3,0.00080008]
[1768096871652,0.002,3095.8,3095.3,0.00080008]
[1768096872365,0.002,3095.8,3095.6,0.001]
[1768096872666,0.002,3095.8,3095.3,0.00080008]
[1768096872865,0.97372712,3095.8,3095.3,0.00080008]
[1768096878876,0.002,3095.8,3095.3,0.00080008]
[1768096883985,0.002,3095.8,3095.6,0.001]
[1768096884177,0.002,3095.8,3095.3,0.00080008]
[1768096895800,0.002,3095.8,3095.6,0.001]
[1768096895999,0.002,3095.8,3095.3,0.00080008]
[1768096897801,0.002,3095.8,3095.3,0.94933913]
[1768096907811,0.002,3095.8,3095.6,0.001]
[1768096925039,0.256,3095.8,3095.6,0.96894688]
[1768096928828,0.256,3095.8,3095.6,0.001]
[1768096929713,0.256,3095.8,3095.5,0.256]
[1768096929915,0.002,3095.8,3095.5,0.256]
[1768096930514,0.002,3095.8,3095.3,0.00080008]
[1768096930704,0.9252669,3095.8,3095.3,0.00080008]
[1768096930916,0.002,3095.8,3095.3,0.00080008]
[1768096933006,0.002,3095.8,3095.3,0.96874696]
[1768096933335,0.002,3095.8,3095.3,1.16257637]
[1768096938042,0.002,3095.8,3095.4,0.99886465]
[1768096940322,0.002,3095.8,3095.4,0.96794688]
[1768096940844,0.002,3095.8,3095.3,0.00080008]
[1768096942114,0.002,3095.8,3095.6,0.001]
[1768096944845,0.002,3095.8,3095.3,0.00080008]
[1768096949158,0.9252669,3095.8,3095.3,0.00080008]
[1768096949358,0.002,3095.8,3095.3,0.00080008]
[1768096953876,0.002,3095.8,3095.6,0.001]
[1768096954060,0.002,3095.8,3095.3,0.00080008]
[1768096954061,0.51447978,3095.8,3095.3,0.00080008]
[1768096958374,1.46657232,3095.8,3095.3,0.00080008]
[1768096960470,0.95209254,3095.7,3095.3,0.00080008]
[1768096961170,0.254,3095.6,3095.3,0.00080008]
[1768096983863,0.254,3095.6,3095.1,0.95287464]
[1768096984063,0.74489453,3095.6,3095.1,0.95287464]
[1768096985091,0.00080008,3095.7,3095.1,0.95287464]
[1768096985388,0.254,3095.6,3095.1,0.95287464]
[1768096985597,0.254,3095.6,3095.1,0.00080016]
[1768096989497,0.002,3095.3,3095.1,0.00080016]
[1768096998504,0.25444628,3095.6,3095.1,0.00080016]
[1768096998672,0.21643913,3095.5,3095.1,0.00080016]
[1768097002605,0.002,3095.3,3095.1,0.00080016]
[1768097006283,0.002,3095.3,3095.1,0.94642077]
[1768097009710,0.254,3095.5,3095.1,0.94642077]
[1768097014781,0.254,3095.5,3095.4,0.001]
[1768097014986,0.254,3095.5,3095.1,0.00080016]
[1768097023826,0.002,3095.6,3095.1,0.00080016]
[1768097023993,0.254,3095.5,3095.1,0.00080016]
[1768097026145,0.254,3095.5,3095.4,0.001]
[1768097026446,0.254,3095.5,3095.1,0.00080016]
[1768097033855,0.94772452,3095.4,3095.1,0.00080016]
[1768097034028,0.94772452,3095.4,3095.0,0.00080016]
[1768097034352,0.89482764,3095.3,3095.0,0.00080016]
[1768097034528,0.89482764,3095.3,3094.8,0.00080016]
[1768097034727,0.94852468,3095.4,3094.8,0.00080016]
[1768097035134,4.17912633,3095.4,3094.8,0.00080016]
[1768097035431,0.94852468,3095.4,3094.8,0.00080016]
[1768097035813,4.17912954,3095.4,3094.8,0.00080016]
[1768097036230,0.94852468,3095.4,3094.8,0.00080016]
[1768097037852,0.94852468,3095.4,3095.1,0.001]
[1768097038057,0.4433859,3095.3,3094.8,0.00080016]
[1768097038847,1.39111042,3095.3,3094.8,0.00080016]
[1768097040424,4.62182693,3095.3,3094.8,0.00080016]
[1768097040625,4.62182693,3095.3,3094.6,0.92110407]
[1768097040820,0.00080016,3095.2,3094.6,0.92110407]
[1768097045141,0.46313285,3095.2,3094.6,0.92110407]
[1768097045549,0.00080016,3095.2,3094.6,0.92110407]
[1768097048363,0.94390765,3095.2,3094.5,0.00080008]
[1768097049127,0.94310749,3095.0,3094.5,0.00080008]
[1768097049333,0.94510749,3094.9,3094.5,0.00080008]
[1768097052878,0.9431075,3094.9,3094.2,0.99035588]
[1768097053166,0.94390758,3094.9,3094.2,0.99035588]
[1768097057559,0.00280008,3094.9,3094.2,0.99035588]
[1768097059386,0.00280008,3094.9,3094.4,0.9885558]
[1768097062585,0.00280008,3094.9,3094.5,0.9895558]
[1768097075110,0.002,3094.6,3094.5,0.9895558]
[1768097075315,0.00280008,3094.9,3094.5,0.9895558]
[1768097087603,0.002,3094.6,3094.5,0.9895558]
[1768097087805,0.00280008,3094.9,3094.5,0.9895558]
[1768097094228,0.00080009,3094.9,3094.5,0.9895558]
[1768097096747,0.254,3095.1,3094.5,0.9895558]
[1768097096948,0.254,3095.1,3094.5,0.99035596]
[1768097099148,0.002,3094.6,3094.5,0.99035596]
[1768097099449,0.254,3095.1,3094.5,0.99035596]
[1768097099948,0.002,3094.9,3094.5,0.99035596]
[1768097100131,0.254,3095.1,3094.5,0.99035596]
[1768097111369,0.254,3095.1,3094.8,0.001]
[1768097112859,1.20855955,3095.2,3094.8,0.001]
[1768097113038,1.65256855,3095.2,3094.8,0.001]
[1768097116736,0.70080916,3095.2,3094.8,0.001]
[1768097122990,0.002,3094.9,3094.8,0.001]
[1768097123133,0.002,3094.9,3094.8,0.00180024]
[1768097134465,0.002,3094.9,3094.6,0.91229992]
[1768097139878,0.002,3094.9,3094.5,0.00180016]
[1768097143300,0.002,3094.9,3094.5,0.92567289]
[1768097145919,0.002,3094.9,3094.8,0.001]
[1768097146214,0.002,3094.9,3094.5,0.92567289]
[1768097148534,0.002,3094.9,3094.5,0.00180016]
[1768097156708,0.002,3094.9,3094.2,0.90635061]
[1768097157057,0.97429857,3094.8,3094.2,0.00180008]
[1768097157418,0.97429857,3094.6,3094.2,0.00180008]
[1768097157738,4.20583811,3094.6,3094.2,0.00180008]
[1768097157915,4.20663819,3094.6,3094.1,0.00080016]
[1768097158241,0.77000154,3094.5,3093.9,0.00080016]
[1768097159209,0.77000154,3094.5,3093.9,0.90535069]
[1768097160727,4.00155516,3094.5,3093.9,0.00080016]
[1768097160931,4.97585373,3094.5,3093.9,0.00080016]
[1768097161660,0.97509873,3094.3,3093.7,0.00080008]
[1768097161809,0.97509865,3093.9,3093.2,0.00080016]
[1768097164042,0.97509865,3093.9,3093.2,0.96116179]
[1768097164526,0.00080008,3093.9,3093.2,0.96116179]
[1768097167549,0.00080008,3093.9,3093.3,0.96036163]
[1768097167847,0.00080008,3094.1,3093.7,0.96036163]
[1768097168218,0.00080008,3094.1,3093.8,0.96036163]
[1768097170174,0.00080016,3094.3,3093.8,0.96036163]
[1768097175266,0.00080016,3094.3,3093.9,0.96036163]
[1768097180683,0.002,3094.0,3093.9,0.96036163]
[1768097189948,0.002,3094.0,3093.8,3.23223526]
[1768097190782,0.002,3094.0,3093.8,4.19259689]
[1768097193576,0.002,3094.0,3093.8,0.96036163]
[1768097193776,0.00280016,3094.3,3093.8,0.96036163]
[1768097193959,0.00280016,3094.3,3093.7,3.23314773]
[1768097199183,0.00280016,3094.3,3093.7,0.00080016]
[1768097200984,0.98041926,3094.3,3093.7,0.00080016]
[1768097201560,0.44660846,3094.2,3093.7,0.00080016]
[1768097201759,0.9776191,3094.1,3093.7,0.00080016]
[1768097202877,0.9776191,3094.0,3093.5,0.00180016]
[1768097204676,0.9796191,3094.0,3093.5,0.00180016]
[1768097206589,0.9776191,3093.9,3093.5,0.00180016]
[1768097206794,1.39878784,3093.8,3093.5,0.00180016]
[1768097207651,0.9776191,3093.8,3093.5,0.00180016]
[1768097227504,0.254,3093.9,3093.5,0.00180016]
[1768097230421,1.2221875,3093.9,3093.5,0.00180016]
[1768097263436,0.254,3093.9,3093.5,0.00180016]
[1768097283082,0.254,3093.9,3093.5,0.95175922]
[1768097283284,0.254,3093.9,3093.5,0.00180016]
[1768097343854,0.002,3094.0,3093.5,0.9284705]
[1768097344033,0.00280016,3094.3,3093.9,0.92667034]
[1768097344927,0.00280016,3094.3,3094.0,0.92667034]
[1768097345337,0.00080016,3094.5,3094.2,0.92667034]
[1768097346247,0.00080016,3094.5,3094.3,3.23174869]
[1768097346446,0.00080016,3094.5,3094.2,4.15847964]
[1768097346628,0.00080016,3094.5,3094.2,4.91046529]
[1768097355276,0.00080016,3094.5,3094.2,0.75198565]
[1768097355438,0.00080016,3094.5,3094.0,4.28799394]
[1768097359168,0.00080016,3094.5,3094.1,3.23194621]
[1768097387571,0.00080016,3094.5,3094.1,4.17572234]
[1768097397209,0.00080016,3094.5,3094.1,7.40767993]
[1768097400700,0.00080016,3094.5,3094.2,0.03231853]
[1768097400898,0.00080016,3094.5,3094.3,1.19569261]
[1768097401103,0.00080016,3094.5,3094.4,0.03231644]
[1768097402718,0.00080016,3094.5,3094.2,0.03231853]
[1768097403423,0.00080016,3094.5,3094.3,3.23174869]
[1768097407021,0.00080016,3094.5,3094.4,0.03231644]
[1768097407422,0.00080008,3094.6,3094.4,0.03231644]
[1768097407595,0.25680016,3094.9,3094.4,12.66026986]
[1768097407789,0.25680016,3094.9,3094.4,12.62795342]
[1768097408726,0.90517486,3095.2,3094.4,12.62795342]
[1768097408727,0.00080024,3095.2,3094.5,0.9981853]
[1768097409024,0.00080024,3095.2,3094.6,0.9981853]
[1768097409323,0.00080024,3095.2,3094.7,6.46266196]
[1768097409526,0.00080024,3095.2,3094.8,0.74608473]
[1768097411938,0.00080024,3095.2,3094.8,3.9772594]
[1768097412136,0.00080024,3095.2,3094.8,0.74608473]
[1768097412418,0.90517486,3095.2,3094.8,0.74608473]
[1768097412624,0.90517486,3095.2,3094.6,0.90517478]
[1768097413928,0.90517486,3095.2,3094.7,3.23133098]
[1768097414634,0.00080024,3095.2,3094.7,6.46266196]
[1768097414814,0.00080024,3095.2,3094.7,7.46084726]
[1768097420932,0.002,3094.9,3094.7,7.46084726]
[1768097421132,0.002,3094.9,3094.8,4.07429275]
[1768097424555,0.002,3094.9,3094.8,0.84306618]
[1768097424837,0.002,3094.9,3094.7,3.36056767]
[1768097426542,0.002,3094.9,3094.8,3.23122657]
[1768097430356,0.002,3094.9,3094.7,3.36060069]
[1768097461390,0.002,3094.9,3094.7,3.23129209]
[1768097463300,0.002,3094.9,3094.6,6.46285624]
[1768097463595,0.002,3094.9,3094.7,0.74618418]
[1768097469698,0.002,3094.9,3094.8,3.23122657]
[1768097470084,0.00080016,3095.4,3094.8,7.47197425]
[1768097470274,0.00080016,3095.4,3094.8,7.69366199]
[1768097470474,0.00080016,3095.4,3094.9,1.82039315]
[1768097470685,0.00080016,3095.4,3095.0,0.03231017]
[1768097472660,0.00080016,3095.4,3095.1,3.23091337]
[1768097473993,0.00080016,3095.4,3095.1,6.46182674]
[1768097476502,0.00080016,3095.4,3095.3,3.23070461]
[1768097478583,0.00280016,3095.4,3095.3,3.23070461]
[1768097478784,0.00280016,3095.4,3095.3,3.88009722]
[1768097479079,0.002,3095.6,3095.3,3.88009722]
[1768097479796,0.002,3095.6,3095.3,7.11080183]
[1768097481971,1e-08,3095.8,3095.3,8.34201052]
[1768097482284,1e-08,3095.8,3095.4,0.97640853]
[1768097482485,1e-08,3095.8,3095.5,0.83420105]
[1768097484906,1e-08,3095.8,3095.6,4.20680005]
[1768097487102,1e-08,3095.8,3095.6,3.23039152]
[1768097489917,1e-08,3095.8,3095.7,0.001]
[1768097497117,0.002,3096.1,3095.7,0.001]
[1768097497323,0.002,3096.1,3095.8,0.74381916]
[1768097498287,0.002,3096.1,3095.8,0.99781916]
[1768097498487,0.002,3096.1,3095.8,1.9962679]
[1768097498798,0.002,3096.1,3095.9,0.99844874]
[1768097499200,0.002,3096.1,3095.9,3.23007849]
[1768097499501,0.002,3096.1,3096.0,0.42278977]
[1768097500901,0.0028,3096.2,3096.0,0.42278977]
[1768097501622,0.002,3096.4,3096.1,3.26216852]
[1768097503089,0.002,3096.4,3096.1,3.22986983]
[1768097507192,0.90664036,3096.7,3096.2,0.03229765]
[1768097507394,0.90464036,3097.0,3096.3,0.90320373]
[1768097507626,0.90464036,3097.0,3096.6,0.00080008]
[1768097508039,0.90464036,3096.6,3096.1,0.00160016]
[1768097508254,0.90464036,3096.4,3095.5,0.90320373]
[1768097508398,0.00080008,3096.2,3095.6,0.03230391]
[1768097508721,0.90544044,3096.2,3095.4,0.03229569]
[1768097508889,0.90544044,3096.2,3095.3,3.23144374]
[1768097509093,0.90544044,3096.2,3095.4,3.5537227]
[1768097509293,0.90544044,3096.2,3095.5,3.23047872]
[1768097510407,0.90544044,3096.2,3095.4,3.55373043]
[1768097513415,0.90544044,3096.2,3095.7,0.001]
[1768097513831,0.99769201,3095.9,3095.7,0.001]
[1768097530065,0.002,3095.9,3095.7,0.001]
[1768097549272,1e-08,3096.2,3095.8,0.90828092]
[1768097549447,1e-08,3096.2,3095.8,0.90908108]
[1768097550061,0.00160016,3096.5,3096.0,0.90828092]
[1768097550987,0.00160016,3096.5,3096.1,0.94057961]
[1768097551459,0.00160016,3096.5,3096.2,3.22976551]
[1768097551658,0.00160016,3096.5,3096.2,3.96656534]
[1768097552489,0.00160016,3096.5,3096.2,4.87484626]
[1768097555414,0.00160016,3096.5,3096.2,0.73679983]
[1768097557896,0.00160016,3096.5,3096.2,3.9665486]
[1768097560197,0.00360016,3096.5,3096.3,0.02383907]
[1768097560397,0.00360016,3096.5,3096.4,0.39903877]
[1768097562601,0.00080008,3097.0,3096.4,4.6260581]
[1768097563666,0.00080008,3097.0,3096.4,7.855615]
[1768097564812,0.00080008,3097.0,3096.4,4.6260581]
[1768097565117,0.00080008,3097.0,3096.4,3.62859567]
[1768097565318,0.00080008,3097.0,3096.5,0.39060438]
[1768097565912,0.00080008,3097.0,3096.5,3.62004809]
[1768097568319,0.00080008,3097.0,3096.5,3.62001988]
[1768097569418,0.00080008,3097.0,3096.5,3.62004833]
[1768097572090,0.94371688,3097.0,3096.5,0.39060438]
[1768097572489,0.002,3096.7,3096.5,0.39060438]
[1768097573324,0.002,3096.7,3096.3,3.229607]
[1768097574125,0.002,3096.7,3096.3,3.2296612]
[1768097580631,0.91908545,3096.7,3096.2,3.96654456]
[1768097580818,0.91908545,3096.7,3096.1,3.48542435]
[1768097581596,0.91908545,3096.7,3096.1,0.00160032]
[1768097581802,0.91908545,3096.7,3096.2,0.254]
[1768097584599,0.91908545,3096.7,3096.5,0.001]
[1768097605368,0.002,3096.7,3096.5,0.001]
[1768097625885,0.002,3096.7,3096.5,0.91313653]
[1768097627004,0.002,3096.7,3096.5,0.001]
[1768097644817,0.002,3096.7,3096.5,0.99006987]
[1768097645117,0.00280008,3097.0,3096.6,0.98906987]
[1768097645493,0.00280008,3097.0,3096.8,0.98906987]
[1768097646310,0.00280008,3097.0,3096.9,1.43629695]
[1768097649594,0.00280008,3097.0,3096.9,0.44722708]
[1768097650195,0.00280008,3097.0,3096.8,0.1292046]
[1768097651212,0.00280008,3097.0,3096.7,1.24306987]
[1768097651421,0.00280008,3097.0,3096.7,0.254]
[1768097653316,0.00280008,3097.0,3096.5,1.92808573]
[1768097653520,0.00280008,3097.0,3096.5,1.19301586]
[1768097654332,0.00280008,3097.0,3096.5,4.42245532]
[1768097654530,0.00280008,3097.0,3096.6,0.44224553]
[1768097654899,0.002,3096.7,3096.6,0.44224553]
[1768097656610,0.002,3096.7,3096.6,3.67159384]
[1768097657529,0.002,3096.7,3096.6,0.44224553]
[1768097659139,0.002,3096.7,3096.6,3.67159384]
[1768097662467,0.002,3096.7,3096.6,0.44224553]
[1768097662623,0.002,3096.7,3096.5,0.001]
[1768097663430,0.002,3096.7,3096.6,3.22934831]
[1768097665765,0.002,3096.7,3096.5,3.2304526]
[1768097666128,0.002,3096.7,3096.5,3.1835159]
[1768097666954,0.002,3096.7,3096.5,6.4129685]
[1768097667258,0.002,3096.7,3096.6,0.03229348]
[1768097668681,0.002,3096.7,3096.6,4.25071166]
[1768097670266,0.002,3096.7,3096.6,4.21841818]
[1768097672081,0.002,3096.7,3096.6,4.25071166]
[1768097672249,0.002,3096.7,3096.6,4.21841818]
[1768097672456,0.002,3096.7,3096.6,5.12643356]
[1768097673874,0.00280008,3097.0,3096.6,5.12643356]
[1768097675969,0.00280008,3097.0,3096.6,4.13736369]
[1768097677891,0.00280008,3097.0,3096.6,0.90801538]
[1768097678059,0.00280008,3097.0,3096.5,3.22941968]
[1768097678395,0.91819653,3097.0,3096.5,3.22941968]
[1768097678992,0.91819653,3097.0,3096.4,3.2295569]
[1768097680571,0.91819653,3097.0,3096.4,3.4835569]
[1768097683515,0.91819653,3097.0,3096.4,0.254]
[1768097684916,0.91819653,3097.0,3096.4,3.48352996]
[1768097689185,0.91819653,3097.0,3096.7,0.001]
[1768097701024,0.00280008,3097.0,3096.7,0.001]
[1768097706084,0.00280008,3097.0,3096.7,0.91517982]
[1768097707130,0.00280008,3097.0,3096.7,4.14438426]
[1768097707506,0.00280008,3097.0,3096.8,0.41443843]
[1768097711727,0.00280008,3097.0,3096.7,0.001]
[1768097721123,0.96072892,3096.9,3096.7,0.001]
[1768097725178,0.00280008,3097.0,3096.7,0.001]
[1768097727473,0.963529,3097.0,3096.7,0.001]
[1768097733906,0.00280008,3097.0,3096.7,0.001]
[1768097735115,0.00280008,3097.0,3096.7,0.99756869]
[1768097735316,0.00280008,3097.0,3096.7,1.42026599]
[1768097736813,0.00280008,3097.0,3096.7,4.64948636]
[1768097737314,0.00280008,3097.0,3096.7,1.42026599]
[1768097739413,0.00280008,3097.0,3096.7,0.4236973]
[1768097745523,0.00280008,3097.0,3096.7,1.42026599]
[1768097745729,0.00280008,3097.0,3096.8,0.46495745]
[1768097751428,0.00280008,3097.0,3096.7,0.001]
[1768097762827,0.00280008,3097.0,3096.7,0.94393472]
[1768097763557,0.00280008,3097.0,3096.9,0.91325888]
[1768097765681,0.00280008,3097.0,3096.9,4.14229436]
[1768097770754,0.002,3097.4,3097.0,0.91325888]
[1768097770957,0.002,3097.4,3097.1,0.41422944]
[1768097773864,0.002,3097.4,3097.1,3.6430302]
[1768097775078,0.0028,3097.5,3097.2,0.03228722]
[1768097775256,0.0028,3097.5,3097.1,3.6430302]
[1768097776445,0.0028,3097.5,3097.1,0.41422944]
[1768097776653,0.97178757,3097.5,3097.2,1.33318417]
[1768097776853,0.97178757,3097.5,3097.2,0.36431241]
[1768097783691,0.97178757,3097.5,3097.2,3.59300128]
[1768097784072,0.97178757,3097.5,3097.2,0.36431241]
[1768097784687,0.0028,3097.5,3097.2,3.59303054]
[1768097784860,0.0028,3097.5,3097.3,0.35930305]
[1768097814265,0.0028,3097.5,3097.2,0.36431241]
[1768097815460,0.99531864,3097.5,3097.2,0.36431241]
[1768097815781,0.99531864,3097.5,3097.0,3.4828678]
[1768097816964,0.99531864,3097.5,3097.0,3.2288678]
[1768097818166,0.99531864,3097.5,3097.3,0.001]
[1768097821865,0.0028,3097.5,3097.3,0.001]
[1768097833181,0.96851114,3097.5,3097.3,0.001]
[1768097833375,0.96851114,3097.5,3096.6,0.00080016]
[1768097833685,0.96851114,3097.5,3096.6,0.25480016]
[1768097833854,0.96851114,3097.5,3096.6,3.48410017]
[1768097834058,0.96851114,3097.5,3096.7,3.23017731]
[1768097836493,0.96851114,3097.5,3096.7,3.99603374]
[1768097841032,0.96851114,3097.5,3097.0,0.001]
[1768097841835,0.96851114,3097.5,3096.7,0.001]
[1768097843034,0.96571114,3097.4,3096.7,0.001]
[1768097846761,0.2568,3097.5,3096.9,0.9442445]
[1768097846927,0.2568,3097.5,3097.0,0.41733842]
[1768097847131,0.2568,3097.5,3096.9,0.9442445]
[1768097847347,0.0028,3097.5,3096.9,0.9442445]
[1768097847740,0.0028,3097.5,3096.8,3.22913975]
[1768097849228,0.96851114,3097.5,3096.7,4.17443912]
[1768097849463,0.96851114,3097.5,3096.7,0.9452445]
[1768097849842,0.96851114,3097.5,3096.7,4.17447623]
[1768097850036,0.96851114,3097.5,3096.7,4.91494675]
[1768097850828,0.96851114,3097.5,3096.7,1.68571502]
[1768097852472,0.96851114,3097.5,3096.7,4.914931]
[1768097852760,0.96851114,3097.5,3097.0,0.001]
[1768097852961,0.002,3097.2,3097.0,0.001]
[1768097867768,0.002,3097.2,3097.0,0.99648705]
[1768097867938,0.002,3097.2,3097.1,0.99548705]
[1768097868144,0.002,3097.2,3097.0,0.001]
[1768097889383,0.93838281,3097.2,3097.0,0.001]
[1768097892406,0.002,3097.2,3097.0,0.001]
[1768097903537,0.002,3097.2,3097.0,0.95267206]
[1768097903733,0.002,3097.2,3097.1,0.95167206]
[1768097905337,0.002,3097.2,3097.0,0.001]
[1768097915711,0.9657989,3097.2,3097.0,0.001]
[1768097918459,0.9657989,3097.2,3096.7,0.001]
[1768097919857,0.002,3097.2,3096.7,0.001]
[1768097920030,0.9657989,3097.2,3096.7,0.44630177]
[1768097920541,0.002,3097.2,3096.7,0.44630177]
[1768097921030,0.002,3097.2,3096.7,3.67553797]
[1768097921729,0.002,3097.2,3096.7,0.44630177]
[1768097928363,0.9657989,3097.2,3096.7,0.44630177]
[1768097928665,0.9657989,3097.2,3096.7,0.001]
[1768097934164,0.9657989,3097.2,3097.0,0.001]
[1768097942787,0.002,3097.2,3097.0,0.001]
[1768097957320,0.99823556,3097.2,3097.0,0.001]
[1768097963104,0.002,3097.2,3097.0,0.001]
[1768098007768,0.002,3097.2,3097.0,0.96044954]
[1768098007959,0.002,3097.2,3097.1,1.15143945]
[1768098008271,0.002,3097.2,3097.1,2.12047082]
[1768098013154,0.002,3097.2,3097.1,1.16102128]
[1768098013668,0.002,3097.2,3097.1,0.96903137]
[1768098019579,0.002,3097.2,3097.1,1.92848091]
[1768098021983,0.002,3097.2,3097.1,0.96903137]
[1768098062103,0.002,3097.2,3097.0,0.001]
[1768098062104,0.95311625,3097.2,3097.0,0.001]
[1768098078255,0.95311625,3097.2,3096.7,0.001]
[1768098082680,0.91828873,3097.1,3096.7,0.001]
[1768098083871,0.91828873,3097.1,3097.0,0.001]
[1768098084166,0.91828873,3097.1,3096.7,0.001]
[1768098085881,0.44556876,3097.2,3096.7,0.91631044]
[1768098086169,0.002,3097.2,3096.7,0.91631044]
[1768098088979,0.002,3097.2,3096.7,0.001]
[1768098093378,0.92028873,3097.2,3096.7,0.001]
[1768098093782,0.99145966,3097.1,3096.7,0.001]
[1768098094688,0.99145966,3097.1,3096.2,0.93308927]
[1768098094875,0.99145966,3096.9,3096.2,0.93308927]
[1768098095068,0.99145966,3096.9,3096.1,0.00160032]
[1768098098495,0.99145966,3096.9,3096.1,0.93468959]
[1768098099203,0.99145966,3096.9,3096.1,4.16453923]
[1768098100314,0.99145966,3096.9,3096.1,0.93468959]
[1768098102188,0.99145966,3096.8,3096.1,0.93468959]
[1768098105178,0.99145966,3096.8,3096.1,0.00160032]
[1768098107216,0.99145966,3096.8,3096.4,0.001]
[1768098107415,0.99345966,3096.8,3096.4,0.001]
[1768098114627,0.96452474,3096.7,3096.1,0.00160032]
[1768098114834,0.9653249,3096.5,3095.7,0.001]
[1768098115136,0.00080016,3096.2,3095.7,0.001]
[1768098119345,0.00080016,3096.2,3096.0,0.001]
[1768098122038,0.9653249,3096.2,3096.0,0.001]
[1768098122349,0.9653249,3096.2,3095.7,0.001]
[1768098123153,0.96452474,3096.1,3095.7,0.001]
[1768098125636,0.96252475,3096.1,3095.7,0.001]
[1768098130049,0.95865796,3096.0,3095.7,0.001]
[1768098132652,0.95665797,3096.0,3095.7,0.001]
[1768098135199,0.95665797,3096.0,3095.3,0.00080016]
[1768098135350,0.41865582,3095.9,3095.3,0.00080016]
[1768098136372,1.37731378,3095.9,3095.3,0.00080016]
[1768098141706,5.47280454,3095.7,3095.1,0.00080024]
[1768098141902,5.4736047,3095.7,3095.1,0.00080024]
[1768098142469,5.4736047,3095.7,3095.6,0.001]
[1768098142669,5.4736047,3095.7,3095.1,0.00080024]
[1768098142870,0.95945812,3095.7,3095.1,0.00080024]
[1768098143082,1.40381502,3095.7,3095.1,0.00080024]
[1768098143673,0.95865796,3095.6,3095.1,0.00080024]
[1768098144701,0.00080024,3095.5,3095.0,0.00080024]
[1768098146081,0.9594582,3095.5,3095.0,0.00080024]
[1768098146484,0.9594582,3095.5,3094.8,0.97756825]
[1768098146724,0.00080024,3095.4,3094.8,0.97756825]
[1768098148831,0.00080024,3095.4,3094.8,0.00080032]
[1768098148832,5.47360478,3095.4,3094.8,0.00080032]
[1768098149007,0.00080032,3095.2,3094.6,0.97676793]